Cogmind - Beta 13 @@@ ROGUE MODE // 2024.04.25 @ 20:12:21 Player: DGSTER Result: Destroyed by Y-45 Defender with Heavy Assault Rifle Performance ------------- Evolutions (1) 500 Regions Visited (2) 400 Robots Destroyed (32) 160 Value Destroyed (765) 765 Prototype IDs (3) 60 Alien Tech Used (0) 0 Bonus (19) 19 TOTAL SCORE: 1904 Bonus ------- High Alert Combat Kills 19 Cogmind --------- Core Integrity 0/400 Matter 260/300 Energy 125/125 System Corruption 0% Temperature Cool (65) Movement Walking (120) Location -9/Materials Parts ------- > --- POWER (1) -------- Light Ion Engine > --- PROPULSION (2) --- Aluminum Leg Aluminum Leg > --- UTILITY (4) ------ Small Storage Unit Signal Interpreter Improved Targeting Computer > --- WEAPON (2) ------- Beam Rifle High-powered Shotgun > --- INVENTORY (8) ---- Heavy Ion Engine Heat Sink Compact Matter Pod (0) Improved Targeting Computer Advanced Beam Cannon Grenade Launcher Rocket Launcher Peak State ------------ > --- POWER ------------ Heavy Ion Engine > --- PROPULSION ------- Aluminum Leg Aluminum Leg > --- UTILITY ---------- Small Storage Unit Structural Scanner Signal Interpreter Improved Targeting Computer > --- WEAPON ----------- Beam Rifle Heavy Assault Rifle > --- INVENTORY -------- Ion Engine Light Ion Engine Aluminum Leg Heat Sink Improved Targeting Computer Shotgun Grenade Launcher Rocket Launcher [Rating: 15] Favorites ----------- Power Ion Engine Engine Ion Engine Propulsion Aluminum Leg Leg Aluminum Leg Utility Small Storage Unit Device Structural Scanner Storage Small Storage Unit Processor Signal Interpreter Protection Light Armor Plating Weapon Light Assault Rifle Energy Gun Beam Rifle Energy Cannon Advanced Beam Cannon Ballistic Gun Light Assault Rifle Build | -11 -10 -9 ------- Run | Yrd Mat Mat Slots Evolved 2 | . . 2 Power . | . . . Propulsion . | . . . Utility 2 | . . 2 Weapon . | . . . Parts Attached 27 | 6 3 18 Power 5 | 1 . 4 Engine 5 | 1 . 4 Core . | . . . Reactor . | . . . Propulsion 7 | 2 . 5 Treads . | . . . Leg 7 | 2 . 5 Wheel . | . . . Hover . | . . . Flight . | . . . Utility 6 | 1 2 3 Device 2 | . 1 1 Storage 1 | 1 . . Processor 2 | . 1 1 Hackware . | . . . Protection 1 | . . 1 Artifact . | . . . Weapon 9 | 2 1 6 Energy Gun 2 | . 1 1 Energy Cannon 1 | . . 1 Ballistic Gun 6 | 2 . 4 Ballistic Cannon . | . . . Launcher . | . . . Special Weapon . | . . . Impact Weapon . | . . . Slashing Weapon . | . . . Piercing Weapon . | . . . Special Melee Weapon . | . . . Unidentified Prototypes 1 | . . 1 Parts Lost 9 | . 1 8 Power 1 | . . 1 Propulsion 3 | . . 3 Utility 2 | . . 2 Weapon 3 | . 1 2 Highest Loss Streak 6 | . 1 6 To Critical Strikes . | . . . Average Slot Usage (%) 93 | . 96 89 Engine 11 | . 14 9 Leg 24 | . 28 21 Device 5 | . . 9 Storage 12 | . 14 11 Processor 12 | . 10 15 Energy Gun 7 | . 5 10 Ballistic Gun 16 | . 22 10 Naked Turns . | . . . Heaviest Build 18 | 13 14 18 Greatest Support 20 | 20 20 20 Greatest Overweight (x) 1 | . . 1 Average Overweight (x) . | . . . Largest Inventory Capacity 8 | 8 8 8 Average Capacity 7 | 6 8 8 Most Carried 8 | 4 8 8 Average Carried 5 | 1 5 5 Final Capacity 8 | 8 8 8 Final Carried 8 | 1 8 7 Class Distribution -------------------- 75% | Mutant 24% | Scavenger-Mutant Dominant Class ---------------- Mutant | -10/Materials Scavenger-Mutant | -9/Materials Resources | -11 -10 -9 ----------- Run | Yrd Mat Mat Matter Collected 676 | 202 194 280 Remotely . | . . . Salvage Created 1017 | . 326 691 Parts 63 | . 28 35 Haulers Intercepted 2 | . 1 1 Recyclers Shooed 2 | . . 2 Parts Field Recycled . | . . . Retrieved Matter . | . . . Parts Self-Destructed . | . . . Prevented . | . . . Kills | -11 -10 -9 ------- Run | Yrd Mat Mat Combat Hostiles Destroyed 29 | . 11 18 Guns 29 | . 11 18 Classes Destroyed 5 | . 3 2 Hauler 2 | . 1 1 Recycler 1 | . . 1 Swarmer 12 | . 6 6 Grunt 13 | . 5 8 Sentry 4 | . . 4 Best Kill Streak 6 | . 5 6 Combat Bots Only 6 | . 5 6 Max Kills in Single Turn 1 | . 1 1 Gunslinging . | . . . Exploded . | . . . Melee . | . . . Uniques/NPCs Destroyed . | . . . Combat | -11 -10 -9 -------- Run | Yrd Mat Mat Hostile Shots Fired 207 | . 63 144 Missed 57 | . 16 41 Damage Taken 1705 | . 429 1276 Core 502 | . 100 402 Absorbed by Shields . | . . . Core Remaining (%) 80 | 100 60 . Volleys Fired 93 | . 33 60 Largest 2 | . 2 2 Hottest 81 | . 60 81 Shots Fired 171 | . 64 107 Gun 171 | . 64 107 Cannon . | . . . Launcher . | . . . Special . | . . . Kinetic 119 | . 59 60 Thermal 52 | . 5 47 Explosive . | . . . Electromagnetic . | . . . Robot Hit Streak 21 | . 10 21 Robot Miss Streak 5 | . 4 5 Penetration Max . | . . . Secondary Targets 5 | . 1 4 Max Gunslinging Chain 1 | . 1 1 Shots Hit Robots 121 | . 41 80 Core Hits 53 | . 20 33 Critical Kills . | . . . Critical Parts Destroyed 1 | . . 1 Critical Strikes 3 | . . 3 Burn 2 | . . 2 Destroy 1 | . . 1 Melee Attacks . | . . . Impact . | . . . Slashing . | . . . Piercing . | . . . Sneak Attacks . | . . . Combat Hostiles . | . . . Follow-up Attacks . | . . . Damage Inflicted 1621 | . 417 1204 Guns 1591 | . 408 1183 Cannons . | . . . Explosions . | . . . Melee . | . . . Ramming 30 | . 9 21 Kinetic 1060 | . 356 704 Thermal 531 | . 52 479 Explosive . | . . . Electromagnetic . | . . . Impact . | . . . Slashing . | . . . Piercing . | . . . Highest Corruption . | . . . Average Corruption . | . . . Corruption Purged . | . . . Corruption Blocked . | . . . Overload Shots . | . . . Overflow Damage . | . . . Projectiles . | . . . Explosions . | . . . Melee . | . . . Knockbacks . | . . . Impact . | . . . Kinetic . | . . . Secondary . | . . . Self-Inflicted Damage . | . . . Shots . | . . . Rammed . | . . . Targets Rammed 9 | . 4 5 Kicked 9 | . 4 5 Crushed . | . . . Highest Temperature 180 | . 40 180 Average Temperature 43 | . 12 51 Received Heat Transfer 588 | . 120 468 Siege Activations . | . . . Robots Corrupted . | . . . Combat Hostiles . | . . . Parts Fried . | . . . Impact Corruptions . | . . . Robots Melted . | . . . Combat Hostiles . | . . . Parts Melted 2 | . . 2 Heat Transferred 1449 | . 125 1324 Parts Sabotaged . | . . . Parts Stolen . | . . . Parts Stripped . | . . . Power Chain Reactions . | . . . Alert | -11 -10 -9 ------- Run | Yrd Mat Mat Peak Influence 430 | . 332 430 Initial 1 | . . 1 Average 151 | . 90 233 Maximum Alert Level 2 | . 1 2 Low Security (%) 55 | 100 80 24 Level 1 43 | . 19 74 Level 2 . | . . . Level 3 . | . . . Level 4 . | . . . Level 5 . | . . . High Security . | . . . Max Security . | . . . Squads Dispatched 6 | . 3 3 Investigation 3 | . 2 1 Extermination . | . . . Reinforcement 3 | . 1 2 Assault . | . . . Garrison . | . . . Intercept . | . . . Searches Triggered . | . . . Construction Impeded . | . . . Haulers Reinforced . | . . . Active Scanning Responses . | . . . Cargo Convoy Interrupts . | . . . Stealth | -11 -10 -9 --------- Run | Yrd Mat Mat Distress Signals 4 | . 1 3 Communications Jammed . | . . . Distress Signals . | . . . Times Spotted 52 | . 20 32 Peak Tracking Total 9 | . 5 9 Tactical Retreats 4 | . . 4 Traps | -11 -10 -9 ------- Run | Yrd Mat Mat Traps Triggered . | . . . Indirectly . | . . . Trap Hack Attempts . | . . . Triggered . | . . . Disarmed . | . . . Reprogrammed . | . . . Reused . | . . . Traps Extracted . | . . . Installed . | . . . Triggered . | . . . Machines | -11 -10 -9 ---------- Run | Yrd Mat Mat Machines Disabled . | . . . Max in Single Turn . | . . . Machines Repaired . | . . . Machines Dismantled . | . . . Machines Sabotaged . | . . . Overloaded Fab Kills . | . . . Hacking | -11 -10 -9 --------- Run | Yrd Mat Mat Machines Accessed 6 | . 4 2 Terminals 6 | . 4 2 Fabricators . | . . . Repair Stations . | . . . Recycling Units . | . . . Scanalyzers . | . . . Garrison Access . | . . . Total Hacks 26 | . 16 10 Successful 13 | . 7 6 Failed 12 | . 8 4 Catastrophic 4 | . 2 2 Database Lockouts 1 | . 1 . Manual . | . . . Terminals 26 | . 16 10 Fabricators . | . . . Repair Stations . | . . . Recycling Units . | . . . Scanalyzers . | . . . Garrison Access . | . . . Terminal Hacks 13 | . 7 6 Record 8 | . 2 6 Robot Analysis 1 | . 1 . Prototype ID Bank 1 | . 1 . Alert Level 1 | . 1 . Unreport Threat 2 | . 2 . Fabricator Hacks . | . . . Repair Station Hacks . | . . . Recycling Unit Hacks . | . . . Scanalyzer . | . . . Garrison Access Hacks . | . . . Unauthorized Hacks . | . . . Terminals . | . . . Fabricators . | . . . Repair Stations . | . . . Recycling Units . | . . . Scanalyzers . | . . . Garrison Access . | . . . Data Cores Recovered . | . . . Used . | . . . Hacking Detections 6 | . 4 2 Full Trace Events 3 | . 2 1 Feedback Events . | . . . Feedback Blocked . | . . . Robot Schematics Acquired . | . . . Robots Built . | . . . Authchips . | . . . Time . | . . . Total Robot Build Rating . | . . . Part Schematics Acquired . | . . . Parts Built . | . . . Authchips . | . . . Time . | . . . Total Part Build Rating . | . . . Parts Repaired . | . . . Time . | . . . Parts Recycled . | . . . Recycled Matter . | . . . Retrieved Matter . | . . . Retrieved Components . | . . . Parts Scanalyzed . | . . . Part Schematics Acquired . | . . . Parts Damaged . | . . . Bothacking | -11 -10 -9 ------------ Run | Yrd Mat Mat Used RIF Installer . | . . . Robots Hacked . | . . . Non-combat . | . . . Combat . | . . . Robot Hacks Applied . | . . . Relay Couplers Released . | . . . Fabnet Peak Effective % . | . . . Robots Rewired . | . . . Allies Hacked . | . . . Hacks Repelled . | . . . Allies | -11 -10 -9 -------- Run | Yrd Mat Mat Total Allies . | . . . Largest Group . | . . . Highest-Rated Group . | . . . Highest-Rated Ally . | . . . Total Orders . | . . . Ally Attacks . | . . . Total Damage . | . . . Kills . | . . . Allies Corrupted . | . . . Allies Melted . | . . . Intel | -11 -10 -9 ------- Run | Yrd Mat Mat Robot Analysis Total 1 | . 1 . Derelict Logs Recovered . | . . . Drone Launches . | . . . Drone Recoveries . | . . . Exploration | -11 -10 -9 ------------- Run | Yrd Mat Mat Turns Passed 1219 | 57 601 561 Spaces Moved 709 | 48 372 289 Core 18 | 18 . . Treads . | . . . Legs 691 | 30 372 289 Wheels . | . . . Hover . | . . . Flight . | . . . Fastest Speed 50 | 50 120 120 Average Speed 118 | 93 120 120 Slowest Speed 190 | 120 120 190 Overloaded Moves . | . . . Propulsion Burnouts . | . . . Robots Hopped . | . . . Cave-ins Triggered . | . . . Exploration Rate (%) 31 | 4 64 27 Regions Visited 2 Branch Regions . Pre-discovered Areas . | . . . Known Exits Taken 1 | . 1 . Unknown Exits Taken 1 | 1 . . Scrap Searched . | . . . Spaces Dug . | . . . Terrain Destroyed . | . . . Melee . | . . . Projectile . | . . . AOE . | . . . Terrain Rammed . | . . . Walls Destroyed . | . . . Machines Disabled . | . . . Actions | -11 -10 -9 --------- Run | Yrd Mat Mat Total 928 | 60 469 399 Wait 49 | . 46 3 Move 707 | 47 371 289 Hop . | . . . Pick Up 33 | 7 10 16 Fast Attach . | . . . Attach 22 | 6 3 13 Detach 1 | . 1 . Swap 5 | . . 5 Drop 9 | . 1 8 Fire 93 | . 33 60 Melee . | . . . Ram . | . . . Kick 9 | . 4 5 Crush . | . . . Escape Stasis . | . . . Rewire . | . . . Trap . | . . . Miscellaneous . | . . . Route ------- -11/Scrapyard -10/Materials -9/Materials History --------- Turn | Location | Event 3 | -11/Scrapyard | Discovered new exit (range 15) 58 | -11/Scrapyard | Entered Materials 317 | -10/Materials | Build established: Mutant 448 | -10/Materials | Discovered new exit (range 11) 608 | -10/Materials | Central database locked down 658 | -10/Materials | Identified exit to Materials 659 | -10/Materials | Entered another Materials area 659 | -9/Materials | Evolved 2 slots: Utility x2 800 | -9/Materials | Lost 6 parts (1p2n1u2w) 969 | -9/Materials | Core integrity fell below 50% 1201 | -9/Materials | Core integrity fell below 20% 1220 | -9/Materials | Destroyed by Y-45 Defender with Heavy Assault Rifle Last Messages --------------- Acquired 8 matter. Kicked W-16 Scout. R-06 Scavenger collects Lgt. Assault Rifle. R-06 Scavenger collects Broken Hvy. Assault Rifle. Acquired 18 matter. W-16 Scout sends out distress signal. Structural Scanner destroyed. U-05 Engineer builds a Door. Y-45 Defender suffers critical hit (Burn). Imp. Ion Engine melted. Y-45 Defender destroyed. Acquired Com. Matter Pod. Dropped Shotgun. Dropped Ion Engine. Acquired Hpw. Shotgun. G-47 Trooper destroyed. K-01 Serf collects debris. G-34 Mercenary destroyed. K-01 Serf collects debris. Map ----- +----------------------------------------------------+ | ""T"" # """ ##?????????????????????????????? | | #[ ##?????????????????????????????? | | !#! "" ##?????????????????????????????? | | %+%% T" ##?????????????????????????????? | | ####### #=! "" ##?????????????????????????????? | | ##### #= ##?#################???????????? | | ##?## ###########?#################???????????? | | !##?## ###########?## # ##???????????? | | ##### ##??????????## # ##???????????? | | ##### ############## # ##???????????? | | ## ############## + ##???????????? | | ## # ##???????????? | | ## T # ##???????????? | | ## # ##???????????? | | ## ##########+### # ##???????????? | | ### ######## # ############???????????? | | ### ###???## # ############???????????? | | ### ##????## # ##?????????????????????? | | ##### ##????## "T" # #########??????????????? | | ## ##????## """ # #########??????????????? | | " ## ###???## # #!![[!!##??????????????? | | " ## ################# #![ [!!##??????????????? | | " # ################ # * ####????????????? | | #= ##??????# #### ############ ??? | | %/%% ##??????#k#### ############??? | | # #####??##@#### = ??? | | # #####+######??##[Yg % ??? | | = ## ## ##??##[#### ???? | | ##### ## """ """ ##??## #### ####### ????? | | ## """ """ ##?### ######/#######?????????? | | ? ## """ """ ######o### ##?????????? | | ## ##### ## ##?????????? | | ##########= "" =| #### ## ##?????????? | | ##########*S"" =| ##### ## """ """ ##?????????? | | ????????##%"" ##### ## """ """ ##?????????? | | ????????##+############# ## """ """ ##?????????? | | ????????## ############# ## ##?????????? | | ???????? #!## ## ## ##?????????? | | ???????? #]## """ """ # ###+########?????????? | | ???????? #*## """ """ # ???? | | ???????? #%## """ """ / T ???? | | ???????? # + # ???? | | ???????? # ## # ####### #####+##???? | | ???????? #]## ] ############# # ???? | | ???????? # ## ########?????? # ?????????? | | ???????? # #######+########?????????? # ?????????? | | ????????## ???? # ?????????? | | ????????## #### ##### ???? # ?????????? | | ????????## #### ##### ????????????????? | | ????????## #### ##????#####??????????????????????? | +----------------------------------------------------+ Best States ------------- Heat Dissipation 28 Energy Generation 10 Energy Capacity 250 Matter Stores 300 Matter Capacity 300 Sight Range 16 Terrain Scan Density 10 Armor Coverage 150 Evasion (%) 55 Targeting Accuracy 6 Item Schematics ----------------- None Robot Schematics ------------------ None Fabricated ------------ Nothing Alien Tech Used ----------------- None Achievements -------------- None Challenges ------------ None Game ------ Seed OmegaModifiedFilter Manual? 0 Play Time 00:11:32 Cumulative 25.3 hours Start 2024.04.25 @ 20:02:30 End 2024.04.25 @ 20:12:21 Sessions 1 Manual Loads 0 Difficulty Rogue Special Mode None Game No. 28 Rogue 27 Adventurer 1 Explorer 0 Win Type - Total 0 Types 0/0/0/0/0/0/0/0/0 Lore% 26 Gallery% 35 Achievement% 28 Wizard Run 0 Options --------- Layout 1 ASCII 0 Keyboard 0 Movement Numpad Keybinds 0 Fullscreen 1 Font 24/Smallcaps Map View 50x35 Zoom Use 0% Tactical HUD 0 Map Filters NONE Filters NONE Steam 1 RUN: c8a21e01-d644-4d61-848e-74d527a29761